lending/lending_fUSD_20250122
["ID","MTS","AMOUNT","RATE_DAILY","PERIOD"]
[349964380,1737539461412,-691.09,0.00020538,2]
[349964381,1737539461421,-1017.16,0.00020538,2]
[349964382,1737539461430,-2699.0,0.00020538,2]
[349964383,1737539461439,-937.05,0.00020538,2]
[349964384,1737539461449,-533.89,0.00020538,2]
[349964385,1737539461459,-560.78,0.00020538,2]
[349964386,1737539461468,-500.0,0.00020538,2]
[349964387,1737539461478,-1260.05,0.00020538,2]
[349964388,1737539461487,-2713.11,0.00020538,2]
[349964389,1737539461497,-500.0,0.00020538,2]
[349964390,1737539461507,-1081.89,0.00020538,2]
[349964391,1737539461517,-500.0,0.00020538,2]
[349964392,1737539461526,-550.03,0.00020538,2]
[349964393,1737539461536,-2666.23,0.00020538,2]
[349964394,1737539461546,-500.0,0.00020538,2]
[349964395,1737539461555,-500.0,0.00020538,2]
[349964396,1737539461566,-500.0,0.00020538,2]
[349964397,1737539461575,-652.0,0.00020538,2]
[349964398,1737539461585,-2266.95,0.00020538,2]
[349964399,1737539461594,-884.93,0.00020538,2]
[349964400,1737539461604,-672.02,0.00020538,2]
[349964401,1737539461613,-594.55,0.00020538,2]
[349964402,1737539461623,-1269.21,0.00020538,2]
[349964403,1737539461632,-500.0,0.00020538,2]
[349964404,1737539461641,-2597.44,0.00020538,2]
[349964405,1737539461651,-576.65,0.00020538,2]
[349964406,1737539461661,-500.0,0.00020538,2]
[349964407,1737539461671,-500.0,0.00020538,2]
[349964408,1737539461681,-500.0,0.00020538,2]
[349964409,1737539461691,-788.0,0.00020538,2]
[349964410,1737539461701,-937.58,0.00020538,2]
[349964411,1737539461711,-500.0,0.00020538,2]
[349964412,1737539461721,-618.82,0.00020538,2]
[349964413,1737539461731,-715.49,0.00020538,2]
[349964414,1737539461741,-500.0,0.00020538,2]
[349964415,1737539461752,-151.0,0.00020539,2]
[349964416,1737539461762,-500.0,0.00020539,2]
[349964417,1737539461772,-500.0,0.00020539,2]
[349964418,1737539461782,-500.0,0.00020539,2]
[349964419,1737539461791,-1321.14,0.00020539,2]
[349964420,1737539461801,-939.41,0.00020539,2]
[349964421,1737539461811,-973.31,0.00020539,2]
[349964422,1737539461820,-980.35,0.00020539,2]
[349964423,1737539461830,-500.0,0.00020539,2]
[349964424,1737539461840,-500.0,0.00020539,2]
[349964425,1737539461850,-500.0,0.00020539,2]
[349964426,1737539461859,-875.35,0.00020539,2]
[349964427,1737539461869,-500.0,0.00020539,2]
[349964428,1737539461879,-500.0,0.00020539,2]
[349964429,1737539461889,-1037.10875048,0.0002054,5]
[349964430,1737539461898,-204.15211244,0.00020543,2]
[349964431,1737539461908,-200.0,0.00020555,2]
[349964432,1737539461918,-206.16625035,0.00020567,2]
[349964433,1737539461927,-150.0,0.00020573,2]
[349964434,1737539461938,-204.15211244,0.00020614,2]
[349964435,1737539461950,-591.0,0.00020652,2]
[349964436,1737539461960,-500.0,0.00020675,2]
[349964437,1737539461969,-204.15211244,0.00020686,2]
[349964438,1737539461979,-745.0,0.000207,2]
[349964439,1737539461989,-204.15211244,0.00020757,2]
[349964440,1737539461998,-520.88792304,0.00020762,2]
[349964441,1737539462007,-150.0,0.00020795,4]
[349964442,1737539462016,-150.0,0.00020795,4]
[349964443,1737539462025,-3630.69727474,0.00020798,2]
[349964444,1737539462034,-326.92377142,0.00020801,2]
[349964445,1737539462044,-66248.03000646,0.00020805,2]
[349964446,1737539462054,-4254.28448091,0.0002081,2]
[349964447,1737539462064,-66248.03000646,0.0002081,2]
[349964448,1737539462077,-500.0,0.00020811,2]
[349964449,1737539462086,-757.38,0.00020811,2]
[349964450,1737539462095,-500.0,0.00020811,2]
[349964451,1737539462105,-500.0,0.00020811,2]
[349964452,1737539462117,-211.25410194,0.00020811,2]
[349964453,1737539462126,-3470.07,0.00020811,2]
[349964454,1737539462136,-924.72,0.00020811,2]
[349964455,1737539462147,-1138.95,0.00020811,2]
[349964456,1737539462158,-818.44,0.00020811,2]
[349964457,1737539462168,-2175.56,0.00020811,2]
[349964458,1737539462179,-500.0,0.00020811,2]
[349964459,1737539462189,-500.0,0.00020811,2]
[349964460,1737539462199,-500.0,0.00020811,2]
[349964461,1737539462209,-500.0,0.00020811,2]
[349964462,1737539462218,-500.0,0.00020811,2]
[349964463,1737539462228,-743.44,0.00020811,2]
[349964464,1737539462237,-1763.14,0.00020811,2]
[349964465,1737539462247,-999.52,0.00020811,2]
[349964466,1737539462256,-1084.08,0.00020811,2]
[349964467,1737539462266,-704.096055,0.00020811,2]
[349964468,1737539462275,-1301.57,0.00020811,2]
[349964469,1737539462285,-1132.86,0.00020811,2]
[349964470,1737539462296,-1771.29,0.00020811,2]
[349964471,1737539462306,-660.07,0.00020811,2]
[349964472,1737539462316,-941.14,0.00020811,2]
[349964473,1737539462326,-1237.633252,0.00020811,2]
[349964474,1737539462336,-1458.89,0.00020811,2]
[349964475,1737539462347,-2891.68,0.00020811,2]
[349964476,1737539462356,-2543.68,0.00020811,2]
[349964477,1737539462366,-500.0,0.00020811,2]
[349964478,1737539462376,-847.27,0.00020811,2]
[349964479,1737539462386,-500.0,0.00020811,2]
[349964480,1737539462396,-809.5,0.00020811,2]
[349964481,1737539462406,-599.51,0.00020811,2]
[349964482,1737539462415,-1278.86,0.00020811,2]
[349964483,1737539462426,-2625.35,0.00020811,2]
[349964484,1737539462436,-501.8,0.00020811,2]
[349964485,1737539462447,-1090.92,0.00020811,2]
[349964486,1737539462457,-3292.63,0.00020811,2]
[349964487,1737539462470,-1345.08,0.00020811,2]
[349964488,1737539462481,-1076.69,0.00020811,2]
[349964489,1737539462491,-540.04,0.00020811,2]
[349964490,1737539462501,-842.21,0.00020811,2]
[349964491,1737539462511,-500.0,0.00020811,2]
[349964492,1737539462521,-1119.08,0.00020811,2]
[349964493,1737539462531,-996.35,0.00020811,2]
[349964494,1737539462541,-500.0,0.00020811,2]
[349964495,1737539462551,-1171.69,0.00020811,2]
[349964496,1737539462561,-602.97,0.00020811,2]
[349964497,1737539462571,-500.0,0.00020811,2]
[349964498,1737539462581,-4255.43,0.00020811,2]
[349964499,1737539462591,-1387.04,0.00020811,2]
[349964500,1737539462601,-1143.16,0.00020811,2]
[349964501,1737539462611,-1965.65,0.00020811,2]
[349964502,1737539462621,-500.0,0.00020811,2]
[349964503,1737539462631,-500.0,0.00020811,2]
[349964504,1737539462641,-818.07,0.00020811,2]
[349964505,1737539462652,-500.0,0.00020811,2]
[349964506,1737539462661,-500.0,0.00020811,2]
[349964507,1737539462672,-1209.13,0.00020811,2]
[349964508,1737539462681,-500.0,0.00020811,2]
[349964509,1737539462691,-875.21,0.00020811,2]
[349964510,1737539462702,-500.0,0.00020811,2]
[349964511,1737539462712,-2793.57,0.00020811,2]
[349964512,1737539462723,-1439.89,0.00020811,2]
[349964513,1737539462732,-206.53887557,0.00020811,2]
[349964514,1737539462743,-1524.01,0.00020811,2]
[349964515,1737539462753,-1051.9,0.00020811,2]
[349964516,1737539462764,-500.0,0.00020811,2]
[349964517,1737539462774,-960.28,0.00020811,2]
[349964518,1737539462784,-548.15,0.00020811,2]
[349964519,1737539462794,-500.0,0.00020811,2]
[349964520,1737539462803,-755.05,0.00020811,2]
[349964521,1737539462816,-500.0,0.00020811,2]
[349964522,1737539462825,-500.0,0.00020811,2]
[349964523,1737539462835,-1639.44,0.00020811,2]
[349964524,1737539462844,-2246.81,0.00020811,2]
[349964525,1737539462855,-523.68,0.00020812,2]
[349964526,1737539462865,-500.0,0.00020812,2]
[349964527,1737539462875,-500.0,0.00020812,2]
[349964528,1737539462885,-500.0,0.00020812,2]
[349964529,1737539462895,-500.0,0.00020812,2]
[349964530,1737539462905,-500.0,0.00020812,2]
[349964531,1737539462915,-500.0,0.00020812,2]
[349964532,1737539462925,-500.0,0.00020812,2]
[349964533,1737539462935,-814.47,0.00020812,2]
[349964534,1737539462946,-500.0,0.00020812,2]
[349964535,1737539462956,-424.88279128,0.00020812,2]
[349964536,1737539462965,-500.0,0.00020812,2]
[349964537,1737539462975,-541.13,0.00020812,2]
[349964538,1737539462985,-611.52093376,0.00020812,2]
[349964539,1737539462995,-500.0,0.00020812,2]
[349964540,1737539463005,-500.0,0.00020812,2]
[349964541,1737539463014,-501.98,0.00020812,2]
[349964542,1737539463024,-500.0,0.00020812,2]
[349964543,1737539463034,-500.0,0.00020812,2]
[349964544,1737539463044,-623.55,0.00020812,2]
[349964545,1737539463055,-500.0,0.00020812,2]
[349964546,1737539463069,-500.0,0.00020812,2]
[349964547,1737539463084,-547.09,0.00020812,2]
[349964548,1737539463094,-500.0,0.00020812,2]
[349964549,1737539463104,-500.0,0.00020812,2]
[349964550,1737539463115,-500.0,0.00020812,2]
[349964551,1737539463126,-831.12,0.00020812,2]
[349964552,1737539463137,-500.0,0.00020812,2]
[349964553,1737539463147,-500.0,0.00020812,2]
[349964554,1737539463160,-537.72,0.00020812,2]
[349964555,1737539463171,-500.0,0.00020812,2]
[349964556,1737539463182,-574.61,0.00020812,2]
[349964557,1737539463194,-500.0,0.00020812,2]
[349964558,1737539463207,-815.28,0.00020812,2]
[349964559,1737539463218,-500.0,0.00020812,2]
[349964560,1737539463230,-500.0,0.00020812,2]
[349964561,1737539463242,-500.0,0.00020812,2]
[349964562,1737539463253,-500.0,0.00020812,2]
[349964563,1737539463264,-500.0,0.00020812,2]
[349964564,1737539463275,-500.0,0.00020812,2]
[349964565,1737539463287,-738.84,0.00020812,2]
[349964566,1737539463298,-1035.26,0.00020812,2]
[349964567,1737539463310,-795.1,0.00020812,2]
[349964568,1737539463327,-500.0,0.00020812,2]
[349964569,1737539463339,-586.3,0.00020812,2]
[349964570,1737539463350,-627.59,0.00020812,2]
[349964571,1737539463362,-734.0,0.00020812,2]
[349964572,1737539463373,-500.0,0.00020812,2]
[349964573,1737539463384,-653.39,0.00020812,2]
[349964574,1737539463396,-886.51,0.00020812,2]
[349964575,1737539463408,-179.1134591,0.00020812,2]
[349964576,1737539463419,-816.46,0.00020812,2]
[349964577,1737539463430,-939.52,0.00020812,2]
[349964578,1737539463441,-500.0,0.00020812,2]
[349964579,1737539463453,-572.2,0.00020812,2]
[349964580,1737539463464,-500.0,0.00020812,2]
[349964581,1737539463474,-737.25,0.00020812,2]
[349964582,1737539463485,-536.52,0.00020812,2]
[349964583,1737539463495,-500.0,0.00020812,2]
[349964584,1737539463506,-544.31,0.00020812,2]
[349964585,1737539463519,-500.0,0.00020812,2]
[349964586,1737539463530,-500.0,0.00020812,2]
[349964587,1737539463541,-515.54,0.00020812,2]
[349964588,1737539463552,-500.0,0.00020812,2]
[349964589,1737539463564,-500.0,0.00020812,2]
[349964590,1737539463574,-879.9,0.00020812,2]
[349964591,1737539463585,-238.24,0.00020812,2]
[349964592,1737539463595,-500.0,0.00020812,2]
[349964593,1737539463605,-500.0,0.00020812,2]
[349964594,1737539463616,-500.0,0.00020812,2]
[349964595,1737539463627,-500.0,0.00020812,2]
[349964596,1737539463639,-500.0,0.00020812,2]
[349964597,1737539463650,-653.55,0.00020812,2]
[349964598,1737539463661,-500.0,0.00020812,2]
[349964599,1737539463672,-500.0,0.00020812,2]
[349964600,1737539463683,-716.12,0.00020812,2]
[349964601,1737539463693,-500.0,0.00020812,2]
[349964602,1737539463704,-500.0,0.00020812,2]
[349964603,1737539463716,-1087.87,0.00020812,2]
[349964604,1737539463727,-500.0,0.00020812,2]
[349964605,1737539463737,-500.0,0.00020812,2]
[349964606,1737539463748,-500.0,0.00020812,2]
[349964607,1737539463758,-1135.96,0.00020812,2]
[349964608,1737539463769,-500.0,0.00020812,2]
[349964609,1737539463779,-565.86103798,0.00020812,2]
[349964610,1737539463790,-526.7,0.00020812,2]
[349964611,1737539463801,-818.59,0.00020812,2]
[349964612,1737539463815,-837.33,0.00020812,2]
[349964613,1737539463826,-500.0,0.00020812,2]
[349964614,1737539463838,-978.34,0.00020812,2]
[349964615,1737539463849,-500.0,0.00020812,2]
[349964616,1737539463861,-500.0,0.00020812,2]
[349964617,1737539463872,-500.0,0.00020812,2]
[349964618,1737539463882,-1075.0,0.00020812,2]
[349964619,1737539463892,-1187.42,0.00020812,2]
[349964620,1737539463903,-833.89,0.00020812,2]
[349964621,1737539463914,-889.93,0.00020812,2]
[349964622,1737539463925,-500.0,0.00020812,2]
[349964623,1737539463936,-500.0,0.00020812,2]
[349964624,1737539463947,-500.0,0.00020812,2]
[349964625,1737539463958,-151.0,0.00020812,2]
[349964626,1737539463969,-500.0,0.00020812,2]
[349964627,1737539463979,-896.87,0.00020812,2]
[349964628,1737539463989,-502.01,0.00020812,2]
[349964629,1737539464000,-954.74,0.00020812,2]
[349964630,1737539464011,-576.49,0.00020812,2]
[349964631,1737539464022,-500.0,0.00020812,2]
[349964632,1737539464183,-742.73,0.00020812,2]
[349964633,1737539464193,-500.0,0.00020812,2]
[349964634,1737539464203,-1167.36,0.00020812,2]
[349964635,1737539464213,-500.0,0.00020812,2]
[349964636,1737539464224,-585.55,0.00020812,2]
[349964637,1737539464235,-500.0,0.00020812,2]
[349964638,1737539464246,-500.0,0.00020812,2]
[349964640,1737539464256,-790.13,0.00020812,2]
[349964641,1737539464267,-954.36,0.00020812,2]
[349964642,1737539464276,-500.0,0.00020812,2]
[349964644,1737539464286,-887.74,0.00020812,2]
[349964645,1737539464296,-500.0,0.00020812,2]
[349964646,1737539464305,-1229.19,0.00020812,2]
[349964648,1737539464317,-678.57,0.00020812,2]
[349964649,1737539464327,-500.0,0.00020812,2]
[349964650,1737539464337,-1111.82,0.00020812,2]
[349964651,1737539464347,-606.41,0.00020812,2]
[349964652,1737539464357,-550.34,0.00020812,2]
[349964653,1737539464367,-2275.36,0.00020812,2]
[349964654,1737539464376,-500.0,0.00020812,2]
[349964655,1737539464386,-151.0,0.00020812,2]
[349964656,1737539464397,-2595.71,0.00020812,2]
[349964657,1737539464407,-532.62,0.00020812,2]
[349964658,1737539464417,-500.0,0.00020812,2]
[349964659,1737539464428,-560.25,0.00020812,2]
[349964660,1737539464438,-5552.09,0.00020812,2]
[349964661,1737539464448,-2185.17,0.00020812,2]
[349964662,1737539464458,-500.0,0.00020812,2]
[349964663,1737539464468,-666.15,0.00020812,2]
[349964664,1737539464479,-500.0,0.00020812,2]
[349964665,1737539464489,-500.0,0.00020812,2]
[349964666,1737539464499,-9446.35,0.00020812,2]
[349964667,1737539464510,-1133.96,0.00020812,2]
[349964668,1737539464520,-562.24,0.00020812,2]
[349964669,1737539464530,-757.56,0.00020812,2]
[349964670,1737539464540,-1637.65,0.00020812,2]
[349964671,1737539464550,-500.0,0.00020812,2]
[349964672,1737539464560,-680.6,0.00020812,2]
[349964673,1737539464571,-1232.93,0.00020812,2]
[349964674,1737539464582,-500.0,0.00020812,2]
[349964675,1737539464592,-794.46,0.00020812,2]
[349964676,1737539464602,-828.8,0.00020812,2]
[349964677,1737539464612,-903.63,0.00020812,2]
[349964678,1737539464623,-2101.98,0.00020812,2]
[349964679,1737539464633,-633.96,0.00020812,2]
[349964680,1737539464644,-595.9,0.00020812,2]
[349964681,1737539464654,-4309.02,0.00020812,2]
[349964682,1737539464664,-2922.04,0.00020812,2]
[349964683,1737539464675,-1756.62,0.00020812,2]
[349964684,1737539464685,-552.1,0.00020812,2]
[349964685,1737539464696,-500.0,0.00020812,2]
[349964686,1737539464706,-500.0,0.00020812,2]
[349964687,1737539464716,-1177.62,0.00020812,2]
[349964688,1737539464727,-3008.63,0.00020812,2]
[349964689,1737539464736,-1652.13,0.00020812,2]
[349964690,1737539464749,-500.0,0.00020812,2]
[349964691,1737539464759,-506.59,0.00020812,2]
[349964692,1737539464769,-1261.45,0.00020812,2]
[349964693,1737539464780,-500.0,0.00020812,2]
[349964694,1737539464791,-1900.25,0.00020812,2]
[349964695,1737539464801,-304.301275,0.00020812,2]
[349964696,1737539464813,-4250.42,0.00020812,2]
[349964697,1737539464822,-1112.25,0.00020812,2]
[349964698,1737539464832,-304.301275,0.00020812,2]
[349964699,1737539464842,-1762.32,0.00020812,2]
[349964700,1737539464852,-569.17,0.00020812,2]
[349964701,1737539464861,-500.0,0.00020812,2]
[349964702,1737539464872,-500.0,0.00020812,2]
[349964703,1737539464881,-324.72497776,0.00020812,2]
[349964704,1737539464893,-694.24,0.00020812,2]
[349964705,1737539464903,-1099.05,0.00020812,2]
[349964706,1737539464914,-691.09,0.00020812,2]
[349964707,1737539464926,-1017.16,0.00020812,2]
[349964708,1737539464936,-2699.0,0.00020812,2]
[349964709,1737539464947,-937.05,0.00020812,2]
[349964710,1737539464956,-533.89,0.00020812,2]
[349964711,1737539464967,-560.78,0.00020812,2]
[349964712,1737539464976,-500.0,0.00020812,2]
[349964713,1737539464986,-1260.05,0.00020812,2]
[349964714,1737539464997,-2713.11,0.00020812,2]
[349964715,1737539465008,-500.0,0.00020812,2]
[349964716,1737539465018,-1081.89,0.00020812,2]
[349964717,1737539465028,-500.0,0.00020812,2]
[349964718,1737539465038,-550.03,0.00020812,2]
[349964719,1737539465048,-2666.23,0.00020812,2]
[349964720,1737539465058,-500.0,0.00020812,2]
[349964721,1737539465072,-500.0,0.00020812,2]
[349964722,1737539465084,-652.0,0.00020812,2]
[349964723,1737539465094,-2266.95,0.00020812,2]
[349964724,1737539465105,-884.93,0.00020812,2]
[349964725,1737539465116,-672.02,0.00020812,2]
[349964726,1737539465126,-594.55,0.00020812,2]
[349964727,1737539465136,-1269.21,0.00020812,2]
[349964728,1737539465147,-500.0,0.00020812,2]
[349964729,1737539465157,-2597.44,0.00020812,2]
[349964730,1737539465167,-576.65,0.00020812,2]
[349964731,1737539465178,-500.0,0.00020812,2]
[349964732,1737539465188,-500.0,0.00020812,2]
[349964733,1737539465199,-500.0,0.00020812,2]
[349964734,1737539465210,-788.0,0.00020812,2]
[349964735,1737539465220,-937.58,0.00020812,2]
[349964736,1737539465230,-500.0,0.00020812,2]
[349964737,1737539465241,-618.82,0.00020812,2]
[349964738,1737539465252,-715.49,0.00020812,2]
[349964739,1737539465263,-500.0,0.00020812,2]
[349964740,1737539465273,-500.0,0.00020813,2]
[349964741,1737539465284,-500.0,0.00020813,2]
[349964742,1737539465295,-500.0,0.00020813,2]
[349964743,1737539465307,-1321.14,0.00020813,2]
[349964744,1737539465323,-939.41,0.00020813,2]
[349964745,1737539465334,-973.31,0.00020813,2]
[349964746,1737539465345,-980.35,0.00020813,2]
[349964747,1737539465355,-500.0,0.00020813,2]
[349964748,1737539465366,-500.0,0.00020813,2]
[349964749,1737539465375,-875.35,0.00020813,2]
[349964750,1737539465385,-500.0,0.00020813,2]
[349964751,1737539465395,-500.0,0.00020813,2]
[349964752,1737539465405,-4254.28448091,0.00020819,2]
[349964753,1737539465415,-503.3876003,0.00020821,2]
[349964754,1737539465425,-3630.69727474,0.00020822,2]
[349964755,1737539465436,-66248.03000646,0.00020824,2]
[349964756,1737539465447,-204.15211244,0.00020829,2]
[349964757,1737539465457,-200.0,0.00020833,2]
[349964758,1737539465467,-210.18333462,0.00020837,2]
[349964759,1737539465477,-3630.69727474,0.00020837,2]
[349964760,1737539465488,-326.92377142,0.00020852,2]
[349964761,1737539465499,-4254.28448091,0.0002086,2]
[349964762,1737539465509,-210.18333462,0.00020861,2]
[349964763,1737539465520,-639.77934151,0.00020865,2]
[349964764,1737539465530,-210.18333462,0.00020866,2]
[349964765,1737539465540,-3630.69727474,0.00020869,2]
[349964766,1737539465550,-5259.73573951,0.00020873,2]
[349964767,1737539465559,-5259.73573951,0.00020874,2]
[349964768,1737539465573,-3630.69727474,0.00020876,2]
[349964769,1737539465583,-639.77934151,0.0002088,2]
[349964770,1737539465592,-326.92377142,0.00020882,2]
[349964771,1737539465602,-4254.28448091,0.00020885,2]
[349964772,1737539465612,-4254.28448091,0.00020889,2]
[349964773,1737539465623,-326.92377142,0.00020894,2]
[349964774,1737539465633,-251.94,0.00020897,2]
[349964775,1737539465643,-206.16625035,0.000209,2]
[349964776,1737539465653,-160.607,0.000209,2]
[349964777,1737539465662,-204.15211244,0.000209,2]
[349964778,1737539465673,-210.18333462,0.00020907,2]
[349964779,1737539465683,-639.77934151,0.00020909,2]
[349964780,1737539465694,-639.77934151,0.00020913,2]
[349964781,1737539465704,-639.77934151,0.00020917,2]
[349964782,1737539465714,-5259.73573951,0.00020927,2]
[349964783,1737539465725,-5259.73573951,0.00020928,2]
[349964784,1737539465735,-200.0,0.00020929,2]
[349964785,1737539465745,-66248.03000646,0.00020936,2]
[349964786,1737539465755,-210.18333462,0.00020936,2]
[349964787,1737539465765,-326.92377142,0.00020944,2]
[349964788,1737539465775,-5259.73573951,0.00020945,2]
[349964789,1737539465785,-66248.03000646,0.00020949,2]
[349964790,1737539465795,-500.0,0.00020949,2]
[349964791,1737539465805,-999.99,0.00020951,2]
[349964792,1737539465819,-150.99,0.00020951,2]
[349964793,1737539465830,-9999.99,0.00020951,2]
[349964794,1737539465839,-150.99,0.00020951,2]
[349964795,1737539465849,-9999.99,0.00020951,2]
[349964796,1737539465859,-204.15211244,0.00020971,2]
[349964797,1737539465869,-11396.1224433,0.00021,7]
[349964798,1737539465880,-2215.93258516,0.00021,2]
[349964799,1737539465890,-9157.95413342,0.00021,2]
[349964800,1737539465899,-7006.46187462,0.00021,2]
[349964801,1737539465909,-204.15211244,0.00021043,2]
[349964802,1737539465919,-520.88792304,0.00021046,2]
[349964803,1737539465929,-509.53,0.00021083,2]
[349964804,1737539465938,-500.0,0.00021085,2]
[349964805,1737539465949,-757.38,0.00021085,2]
[349964806,1737539465958,-500.0,0.00021085,2]
[349964807,1737539465968,-500.0,0.00021085,2]
[349964808,1737539465978,-3470.07,0.00021085,2]
[349964809,1737539465988,-924.72,0.00021085,2]
[349964810,1737539465998,-1138.95,0.00021085,2]
[349964811,1737539466011,-818.44,0.00021085,2]
[349964812,1737539466021,-2175.56,0.00021085,2]
[349964813,1737539466032,-500.0,0.00021085,2]
[349964814,1737539466041,-500.0,0.00021085,2]
[349964815,1737539466051,-500.0,0.00021085,2]
[349964816,1737539466063,-500.0,0.00021085,2]
[349964817,1737539466075,-743.44,0.00021085,2]
[349964818,1737539466090,-1763.14,0.00021085,2]
[349964819,1737539466100,-999.52,0.00021085,2]
[349964820,1737539466110,-1084.08,0.00021085,2]
[349964821,1737539466119,-704.096055,0.00021085,2]
[349964822,1737539466131,-1301.57,0.00021085,2]
[349964823,1737539466142,-1132.86,0.00021085,2]
[349964824,1737539466153,-1771.29,0.00021085,2]
[349964825,1737539466163,-660.07,0.00021085,2]
[349964826,1737539466173,-941.14,0.00021085,2]
[349964827,1737539466183,-1237.633252,0.00021085,2]
[349964828,1737539466194,-1458.89,0.00021085,2]
[349964829,1737539466204,-2891.68,0.00021085,2]
[349964830,1737539466214,-2543.68,0.00021085,2]
[349964831,1737539466224,-500.0,0.00021085,2]
[349964832,1737539466233,-847.27,0.00021085,2]
[349964833,1737539466243,-500.0,0.00021085,2]
[349964834,1737539466252,-809.5,0.00021085,2]
[349964835,1737539466262,-599.51,0.00021085,2]
[349964836,1737539466272,-1278.86,0.00021085,2]
[349964837,1737539466284,-2625.35,0.00021085,2]
[349964838,1737539466299,-501.8,0.00021085,2]
[349964839,1737539466309,-1090.92,0.00021085,2]
[349964840,1737539466322,-3292.63,0.00021085,2]
[349964841,1737539466332,-1345.08,0.00021085,2]
[349964842,1737539466349,-1076.69,0.00021085,2]
[349964843,1737539466359,-540.04,0.00021085,2]
[349964844,1737539466369,-842.21,0.00021085,2]
[349964845,1737539466379,-500.0,0.00021085,2]
[349964846,1737539466389,-1119.08,0.00021085,2]
[349964847,1737539466399,-996.35,0.00021085,2]
[349964848,1737539466409,-500.0,0.00021085,2]
[349964849,1737539466419,-1171.69,0.00021085,2]
[349964850,1737539466428,-602.97,0.00021085,2]
[349964851,1737539466438,-500.0,0.00021085,2]
[349964852,1737539466448,-4255.43,0.00021085,2]
[349964853,1737539466458,-1387.04,0.00021085,2]
[349964854,1737539466468,-1143.16,0.00021085,2]
[349964855,1737539466478,-1965.65,0.00021085,2]
[349964856,1737539466488,-490.2,0.00021085,2]
[349964857,1737539466497,-500.0,0.00021085,2]
[349964858,1737539466507,-818.07,0.00021085,2]
[349964859,1737539466517,-500.0,0.00021085,2]
[349964860,1737539466527,-1209.13,0.00021085,2]
[349964861,1737539466538,-875.21,0.00021085,2]
[349964862,1737539466549,-500.0,0.00021085,2]
[349964863,1737539466558,-2793.57,0.00021085,2]
[349964864,1737539466571,-1439.89,0.00021085,2]
[349964865,1737539466581,-1524.01,0.00021085,2]
[349964866,1737539466592,-153.695407,0.00021085,2]
[349964867,1737539466602,-1051.9,0.00021085,2]
[349964868,1737539466613,-500.0,0.00021085,2]
[349964869,1737539466622,-960.28,0.00021085,2]
[349964870,1737539466632,-548.15,0.00021085,2]
[349964871,1737539466641,-500.0,0.00021085,2]
[349964872,1737539466651,-755.05,0.00021085,2]
[349964873,1737539466661,-500.0,0.00021085,2]
[349964874,1737539466671,-500.0,0.00021085,2]
[349964875,1737539466681,-1639.44,0.00021085,2]
[349964876,1737539466691,-2246.81,0.00021085,2]
[349964877,1737539466701,-523.68,0.00021086,2]
[349964878,1737539466711,-500.0,0.00021086,2]
[349964879,1737539466720,-500.0,0.00021086,2]
[349964880,1737539466731,-500.0,0.00021086,2]
[349964881,1737539466743,-500.0,0.00021086,2]
[349964882,1737539466753,-500.0,0.00021086,2]